bitfinex-derivatives/quotes_BTCF0:USTF0_20251111
["timestamp","ask_amount","ask_price","bid_price","bid_amount"]
[1762890549049,0.1407554,103390.0,103380.0,0.07502304]
[1762890549238,0.42767694,103390.0,103380.0,0.07722107]
[1762890549440,0.14148803,103390.0,103380.0,0.09996107]
[1762890549640,0.14148803,103390.0,103380.0,0.19671587]
[1762890549847,0.41218263,103390.0,103380.0,0.19671587]
[1762890550350,0.14148803,103390.0,103380.0,0.19671587]
[1762890550656,0.51288803,103390.0,103380.0,0.10096107]
[1762890550842,0.80539694,103390.0,103380.0,0.06520107]
[1762890551043,0.80539694,103390.0,103380.0,0.00817958]
[1762890551450,0.51920803,103390.0,103380.0,0.00817958]
[1762890551652,0.80539694,103390.0,103380.0,0.00817958]
[1762890553946,0.51920803,103390.0,103380.0,0.03048958]
[1762890554152,0.51288803,103390.0,103380.0,0.16300438]
[1762890554545,0.14548803,103390.0,103380.0,0.16300438]
[1762890554850,0.51292803,103390.0,103380.0,0.16300438]
[1762890555552,0.14548803,103390.0,103380.0,0.16300438]
[1762890555756,0.51284803,103390.0,103380.0,0.06624958]
[1762890556949,0.51284803,103390.0,103380.0,0.16300438]
[1762890557145,0.51284803,103390.0,103380.0,0.06624958]
[1762890557352,0.51284803,103390.0,103380.0,0.16300438]
[1762890557549,0.04874263,103390.0,103380.0,0.16300438]
[1762890557953,0.41610263,103390.0,103380.0,0.16300438]
[1762890558149,0.51284803,103390.0,103380.0,0.06624958]
[1762890559342,0.41610263,103390.0,103380.0,0.16300438]
[1762890559963,0.51284803,103390.0,103380.0,0.06624958]
[1762890562057,0.79903694,103390.0,103380.0,0.00817958]
[1762890562551,0.79903694,103390.0,103380.0,0.03018958]
[1762890563259,0.79903694,103390.0,103380.0,0.05339958]
[1762890563457,0.51284803,103390.0,103380.0,0.06699958]
[1762890565654,0.51284803,103390.0,103380.0,0.00817958]
[1762890565845,0.51284803,103390.0,103380.0,0.05339958]
[1762890566050,0.51284803,103390.0,103380.0,0.06699958]
[1762890567461,0.14548803,103390.0,103380.0,0.16375438]
[1762890567661,0.51292803,103390.0,103380.0,0.16375438]
[1762890568961,0.14548803,103390.0,103380.0,0.16375438]
[1762890569659,0.51288803,103390.0,103380.0,0.16375438]
[1762890569860,0.51288803,103390.0,103380.0,0.06699958]
[1762890570858,0.66896829,103390.0,103380.0,0.06699958]
[1762890572358,0.66896829,103390.0,103380.0,0.10171107]
[1762890572762,0.66896829,103390.0,103380.0,0.06699958]
[1762890573567,0.66896829,103390.0,103380.0,0.10171107]
[1762890575068,0.66896829,103390.0,103380.0,0.06490107]
[1762890575467,0.66896829,103390.0,103380.0,0.19846587]
[1762890578563,0.04874263,103390.0,103380.0,0.37153527]
[1762890579363,0.02513,103390.0,103380.0,0.37153527]
[1762890579571,0.004,103390.0,103380.0,0.37153527]
[1762890580167,0.50871416,103410.0,103400.0,0.1555561]
[1762890580466,0.50944679,103410.0,103400.0,0.15775413]
[1762890580768,0.66552705,103410.0,103400.0,0.15775413]
[1762890581268,0.66552705,103410.0,103400.0,0.15975413]
[1762890581763,0.29816705,103410.0,103400.0,0.16075413]
[1762890581969,0.66552705,103410.0,103400.0,0.16075413]
[1762890585369,0.29816705,103410.0,103400.0,0.16075413]
[1762890585557,0.66552705,103410.0,103400.0,0.16075413]
[1762890585866,0.20143815,103410.0,103400.0,0.16075413]
[1762890586072,0.04535789,103410.0,103400.0,0.35156938]
[1762890586869,0.04535789,103410.0,103400.0,0.19548912]
[1762890587370,0.04535789,103410.0,103400.0,0.35156938]
[1762890588572,0.00014526,103410.0,103400.0,0.35156938]
[1762890588775,0.04462526,103410.0,103400.0,0.35156938]
[1762890589776,0.00014526,103410.0,103400.0,0.35156938]
[1762890590169,0.55552366,103430.0,103420.0,0.1533674]
[1762890590369,0.55625629,103430.0,103420.0,0.15556543]
[1762890591073,0.14653603,103430.0,103420.0,0.15556543]
[1762890591278,0.51485603,103430.0,103420.0,0.15556543]
[1762890591470,0.41814263,103430.0,103420.0,0.15556543]
[1762890591979,0.41814263,103430.0,103420.0,0.15656543]
[1762890592273,0.51485063,103430.0,103420.0,0.15656543]
[1762890592869,0.6707957,103430.0,103420.0,0.3125105]
[1762890593378,0.3034757,103430.0,103420.0,0.2157931]
[1762890593569,0.3034757,103430.0,103420.0,0.05984803]
[1762890593769,0.3034757,103430.0,103420.0,0.04605803]
[1762890594178,0.3024757,103430.0,103420.0,0.04605803]
[1762890594966,0.3024757,103430.0,103420.0,0.00319803]
[1762890595279,0.3024757,103430.0,103420.0,0.02423803]
[1762890595771,0.3024757,103430.0,103420.0,0.00319803]
[1762890595971,0.3024757,103430.0,103420.0,0.02423803]
[1762890596378,0.3024757,103430.0,103420.0,0.00319803]
[1762890596578,0.45842077,103430.0,103420.0,0.00319803]
[1762890597177,0.45842077,103430.0,103420.0,0.001]
[1762890599272,0.45842077,103430.0,103420.0,0.00319803]
[1762890599874,0.45842077,103430.0,103420.0,0.09991543]
[1762890600481,0.3024757,103430.0,103420.0,0.09991543]
[1762890600677,0.45842077,103430.0,103420.0,0.09991543]
[1762890600882,0.14653063,103430.0,103420.0,0.15826543]
[1762890601183,0.3024757,103430.0,103420.0,0.15826543]
[1762890602083,0.5730477,103430.0,103420.0,0.3142105]
[1762890602488,0.6697557,103430.0,103420.0,0.3142105]
[1762890602681,0.6697557,103430.0,103420.0,0.15826543]
[1762890602878,0.82570077,103430.0,103420.0,0.00319803]
[1762890603081,0.82570077,103430.0,103420.0,0.001]
[1762890603877,0.97110235,103430.0,103420.0,0.001]
[1762890604081,0.1443674,103420.0,103410.0,0.09687196]
[1762890604281,0.45699017,103420.0,103410.0,0.09906999]
[1762890605483,0.45799017,103420.0,103410.0,0.00234329]
[1762890605889,0.45799017,103420.0,103410.0,0.09906999]
[1762890606388,0.45799017,103420.0,103410.0,0.12203999]
[1762890606590,0.45799017,103420.0,103410.0,0.14450999]
[1762890606789,0.45799017,103420.0,103410.0,0.15741999]
[1762890608486,0.2965751,103420.0,103410.0,0.15741999]
[1762890608686,0.1998577,103420.0,103410.0,0.15741999]
[1762890608989,0.2965751,103420.0,103410.0,0.15741999]
[1762890609194,0.81980017,103420.0,103410.0,0.06069329]
[1762890609688,0.45252017,103420.0,103410.0,0.06069329]
[1762890609890,0.81980017,103420.0,103410.0,0.06069329]
[1762890611386,0.81980017,103420.0,103410.0,0.15741999]
[1762890611580,0.81980017,103420.0,103410.0,0.19205947]
[1762890611776,0.35580277,103420.0,103410.0,0.15741999]
[1762890611976,0.5671377,103420.0,103410.0,0.34800454]
[1762890612289,0.81980017,103420.0,103410.0,0.09533277]
[1762890612485,0.81980017,103420.0,103410.0,0.08242277]
[1762890612691,0.81980017,103420.0,103410.0,0.09533277]
[1762890612885,0.81980017,103420.0,103410.0,0.08242277]
[1762890614194,0.81980017,103420.0,103410.0,0.17914947]
[1762890614493,0.81980017,103420.0,103410.0,0.08242277]
[1762890614786,0.81980017,103420.0,103410.0,0.17914947]
[1762890615184,0.81980017,103420.0,103410.0,0.19205947]
[1762890615583,0.81980017,103420.0,103410.0,0.09533277]
[1762890615787,0.81980017,103420.0,103410.0,0.19205947]
[1762890616484,0.81980017,103420.0,103410.0,0.17914947]
[1762890616877,0.81980017,103420.0,103410.0,0.05995277]
[1762890617083,0.81980017,103420.0,103410.0,0.00014526]
[1762890617378,0.97574524,103420.0,103410.0,0.00014526]
[1762890617579,0.81980017,103420.0,103410.0,0.00014526]
[1762890618891,0.81980017,103420.0,103410.0,0.09687196]
[1762890619093,0.81980017,103420.0,103410.0,0.09906999]
[1762890619791,0.50791003,103420.0,103410.0,0.14428999]
[1762890619993,0.81980017,103420.0,103410.0,0.17892947]
[1762890620183,0.81980017,103420.0,103410.0,0.19205947]
[1762890620988,0.81980017,103420.0,103410.0,0.15741999]
[1762890621186,0.81980017,103420.0,103410.0,0.19205947]
[1762890621389,0.14063003,103420.0,103410.0,0.34800454]
[1762890621590,0.2965751,103420.0,103410.0,0.19205947]
[1762890621790,0.5671377,103420.0,103410.0,0.19205947]
[1762890622596,0.1998577,103420.0,103410.0,0.19205947]
[1762890622995,0.5670977,103420.0,103410.0,0.19205947]
[1762890623293,0.6638151,103420.0,103410.0,0.19205947]
[1762890623590,0.5670977,103420.0,103410.0,0.34800454]
[1762890625095,0.1998577,103420.0,103410.0,0.34800454]
[1762890625296,0.5670977,103420.0,103410.0,0.34800454]
[1762890625596,0.6638151,103420.0,103410.0,0.09533277]
[1762890625800,0.6638151,103420.0,103410.0,0.19205947]
[1762890626700,0.81976017,103420.0,103410.0,0.09533277]
[1762890626992,0.6638151,103420.0,103410.0,0.19205947]
[1762890627201,0.2965751,103420.0,103410.0,0.19205947]
[1762890627493,0.6638151,103420.0,103410.0,0.19205947]
[1762890628501,0.6638151,103420.0,103410.0,0.09533277]
[1762890628798,0.81976017,103420.0,103410.0,0.08220277]
[1762890629298,0.81976017,103420.0,103410.0,0.04756329]
[1762890629485,0.81976017,103420.0,103410.0,0.00234329]
[1762890630898,0.81976017,103420.0,103410.0,0.00014526]
[1762890634597,0.81976017,103420.0,103410.0,0.09906999]
[1762890634905,0.50787003,103420.0,103410.0,0.15730999]
[1762890635093,0.6638151,103420.0,103410.0,0.15730999]
[1762890635889,0.6638151,103420.0,103410.0,0.19194947]
[1762890636495,0.6638151,103420.0,103410.0,0.34789454]
[1762890636496,0.04391263,103420.0,103410.0,0.34789454]
[1762890636801,0.02285263,103420.0,103410.0,0.34789454]
[1762890637705,0.00173263,103420.0,103410.0,0.36495569]
[1762890637997,0.001,103420.0,103410.0,0.36495569]
[1762890638398,0.35276686,103440.0,103430.0,0.154948]
[1762890638598,0.35276686,103440.0,103430.0,0.34774378]
[1762890639202,0.35276686,103440.0,103430.0,0.3130911]
[1762890639401,0.04256686,103440.0,103430.0,0.34774378]
[1762890639710,0.13999819,103440.0,103430.0,0.25103578]
[1762890639904,0.29594326,103440.0,103430.0,0.09509071]
[1762890640096,0.29594326,103440.0,103430.0,0.19179871]
[1762890640497,0.29594326,103440.0,103430.0,0.09509071]
[1762890640796,0.29594326,103440.0,103430.0,0.09609071]
[1762890641197,0.29594326,103440.0,103430.0,0.19279871]
[1762890641902,0.29594326,103440.0,103430.0,0.34874378]
[1762890643004,0.19924456,103440.0,103430.0,0.34874378]
[1762890644805,0.29594326,103440.0,103430.0,0.25203578]
[1762890645008,0.13999819,103440.0,103430.0,0.09609071]
[1762890645213,0.29594326,103440.0,103430.0,0.19279871]
[1762890645404,0.29594326,103440.0,103430.0,0.09609071]
[1762890646411,0.29594326,103440.0,103430.0,0.19279871]
[1762890647401,0.29594326,103440.0,103430.0,0.15814603]
[1762890647608,0.19924456,103440.0,103430.0,0.3140911]
[1762890647808,0.29594326,103440.0,103430.0,0.3140911]
[1762890648207,0.29594326,103440.0,103430.0,0.15814603]
[1762890648508,0.19924456,103440.0,103430.0,0.3140911]
[1762890649314,0.04329949,103440.0,103430.0,0.3140911]
[1762890649609,0.19924456,103440.0,103430.0,0.3140911]
[1762890650202,0.29594326,103440.0,103430.0,0.3140911]
[1762890654909,0.29591896,103440.0,103430.0,0.15814603]
[1762890655909,0.13999819,103440.0,103430.0,0.15814603]
[1762890656505,0.04329949,103440.0,103430.0,0.15814603]
[1762890656710,0.13999819,103440.0,103430.0,0.15814603]
[1762890659216,0.13999819,103440.0,103430.0,0.06143803]
[1762890659713,0.13999819,103440.0,103430.0,0.15814603]
[1762890660611,0.29591896,103440.0,103430.0,0.15814603]
[1762890663016,0.29591896,103440.0,103430.0,0.06143803]
[1762890663607,0.45183973,103440.0,103430.0,0.001]
[1762890664820,0.145688,103430.0,103420.0,0.00483442]
[1762890665126,0.1465473,103420.0,103410.0,0.00014526]
[1762890665313,0.3032007,103420.0,103410.0,0.00014526]
[1762890665922,0.3032007,103420.0,103410.0,0.15658999]
[1762890666110,0.3032007,103420.0,103410.0,0.04672329]
[1762890666618,0.14095993,103420.0,103410.0,0.15658999]
[1762890666820,0.2968807,103420.0,103410.0,0.15658999]
[1762890667023,0.6640007,103420.0,103410.0,0.15658999]
[1762890667319,0.6650008,103420.0,103410.0,0.15658999]
[1762890667521,0.36885263,103420.0,103410.0,0.31251076]
[1762890667720,9.686e-05,103440.0,103430.0,0.154228]
[1762890667933,0.00082949,103440.0,103430.0,0.3123468]
[1762890668515,0.1410659,103460.0,103450.0,0.05752]
[1762890668718,0.50939853,103460.0,103450.0,0.05971803]
[1762890669316,0.50939853,103460.0,103450.0,0.15640733]
[1762890669514,0.50939853,103460.0,103450.0,0.05971803]
[1762890670026,0.51139853,103460.0,103450.0,0.05971803]
[1762890670523,0.51439853,103460.0,103450.0,0.05971803]
[1762890674424,0.51439853,103460.0,103450.0,0.15640733]
[1762890675525,0.51439853,103460.0,103450.0,0.05971803]
[1762890675922,0.51439853,103460.0,103450.0,0.15640733]
[1762890676129,0.80014553,103460.0,103450.0,0.15640733]
[1762890676628,0.80014553,103460.0,103450.0,0.05971803]
[1762890677428,0.80014553,103460.0,103450.0,0.15640733]
[1762890679721,0.81036553,103460.0,103450.0,0.15640733]
[1762890680530,0.81036553,103460.0,103450.0,0.00219803]
[1762890680831,0.1419893,103450.0,103440.0,0.15507706]
[1762890681030,0.42846893,103450.0,103440.0,0.15727509]
[1762890682330,0.42946893,103450.0,103440.0,0.15727509]
[1762890682629,0.43146893,103450.0,103440.0,0.15727509]
[1762890683028,0.14572193,103450.0,103440.0,0.15727509]
[1762890683428,0.04903263,103450.0,103440.0,0.15727509]
[1762890684234,0.14572193,103450.0,103440.0,0.15727509]
[1762890684827,0.14572193,103450.0,103440.0,0.15728199]
[1762890686926,0.04903263,103450.0,103440.0,0.15728199]
[1762890687822,0.14572193,103450.0,103440.0,0.15728199]
[1762890688224,0.04903263,103450.0,103440.0,0.15728199]
[1762890688832,0.14572193,103450.0,103440.0,0.15728199]
[1762890689033,0.04903263,103450.0,103440.0,0.15728199]
[1762890689535,0.04903263,103450.0,103440.0,0.18318853]
[1762890690426,0.41623263,103450.0,103440.0,0.18318853]
[1762890691034,0.30161086,103450.0,103440.0,0.18318853]
[1762890691230,0.66881086,103450.0,103440.0,0.18318853]
[1762890691624,0.30161086,103450.0,103440.0,0.18318853]
[1762890691833,0.66877086,103450.0,103440.0,0.18318853]
[1762890692534,0.66877086,103450.0,103440.0,0.08648983]
[1762890692834,0.30161086,103450.0,103440.0,0.08648983]
[1762890693131,0.66877086,103450.0,103440.0,0.00234329]
[1762890693638,0.66877086,103450.0,103440.0,0.04744329]
[1762890693825,0.66877086,103450.0,103440.0,0.06056329]
[1762890696631,0.30161086,103450.0,103440.0,0.06056329]
[1762890696834,0.66873086,103450.0,103440.0,0.06056329]
[1762890697442,0.66873086,103450.0,103440.0,0.08646983]
[1762890700138,0.66873086,103450.0,103440.0,0.08653395]
[1762890700526,0.66873086,103450.0,103440.0,0.08634395]
[1762890703841,0.66873086,103450.0,103440.0,0.06037329]
[1762890704341,0.66873086,103450.0,103440.0,0.15707199]
[1762890704837,0.66873086,103450.0,103440.0,0.06037329]
[1762890705942,0.66873086,103450.0,103440.0,0.08634395]
[1762890706349,0.66873086,103450.0,103440.0,0.06037329]
[1762890707945,0.66873086,103450.0,103440.0,0.00234329]
[1762890708240,0.140868,103430.0,103420.0,0.03080016]
[1762890708538,0.67154496,103430.0,103420.0,0.00483442]
[1762890709639,0.67154496,103430.0,103420.0,0.14597182]
[1762890709839,0.14406603,103430.0,103420.0,0.15940182]
[1762890710042,0.66707496,103430.0,103420.0,0.18536756]
[1762890711441,0.51118603,103430.0,103420.0,0.18536756]
[1762890711639,0.14406603,103430.0,103420.0,0.18536756]
[1762890711945,0.51118603,103430.0,103420.0,0.18536756]
[1762890712639,0.66707496,103430.0,103420.0,0.18536756]
[1762890713033,0.29995496,103430.0,103420.0,0.18536756]
[1762890713229,0.66711496,103430.0,103420.0,0.18536756]
[1762890713439,0.66707496,103430.0,103420.0,0.08865016]
[1762890714643,0.66707496,103430.0,103420.0,0.18536756]
[1762890714845,0.66715288,103430.0,103420.0,0.18536756]
[1762890715336,0.66715288,103430.0,103420.0,0.08865016]
[1762890716142,0.00319803,103430.0,103420.0,0.49730126]
[1762890716548,0.00319803,103430.0,103420.0,0.50590471]
[1762890716747,0.097708,103430.0,103420.0,0.34993786]
[1762890716940,0.14373603,103430.0,103420.0,0.34993786]
[1762890718047,0.04702803,103430.0,103420.0,0.34993786]
[1762890718246,0.20299488,103430.0,103420.0,0.34993786]
[1762890718945,0.04702803,103430.0,103420.0,0.34993786]
[1762890719349,0.04702803,103430.0,103420.0,0.40191688]
[1762890719547,0.14373603,103430.0,103420.0,0.40191688]
[1762890719944,0.29970288,103430.0,103420.0,0.34993786]
[1762890720137,0.29970288,103430.0,103420.0,0.09725361]
[1762890720343,0.29970288,103430.0,103420.0,0.12319137]
[1762890720947,0.29970288,103430.0,103420.0,0.12319437]
[1762890721145,0.46298973,103430.0,103420.0,0.06534437]
[1762890721355,0.46298973,103430.0,103420.0,0.00483442]
[1762890723054,0.60816733,103430.0,103420.0,0.00483442]
[1762890726950,0.60816733,103430.0,103410.0,0.00014526]
[1762890726951,0.05359,103420.0,103410.0,0.00014526]
[1762890727157,0.73488173,103420.0,103410.0,0.00014526]
[1762890727453,0.83159913,103420.0,103410.0,0.00014526]
[1762890728356,0.83259913,103420.0,103410.0,0.00014526]
[1762890730542,0.1185567,103410.0,103400.0,7.88e-05]
[1762890730758,0.45422843,103410.0,103400.0,7.88e-05]
[1762890732050,0.45422843,103410.0,103400.0,0.0010788]
[1762890732953,0.1455761,103400.0,103390.0,0.00014526]
[1762890733156,0.82690783,103400.0,103390.0,0.00014526]
[1762890733351,0.1474354,103390.0,103380.0,0.00483629]
[1762890733656,0.46156713,103390.0,103380.0,0.02727629]
[1762890733858,0.30560028,103390.0,103380.0,0.02727629]
[1762890734156,0.20162603,103390.0,103380.0,0.16041109]
[1762890734353,0.56882603,103390.0,103380.0,0.16041109]
[1762890734950,0.56882603,103390.0,103380.0,0.31937794]
[1762890735458,0.20162603,103390.0,103380.0,0.31937794]
[1762890735759,0.66561143,103390.0,103380.0,0.31937794]
[1762890735969,0.66561143,103390.0,103380.0,0.06665629]
[1762890736152,0.66561143,103390.0,103380.0,0.06865629]
[1762890736460,0.66561143,103390.0,103380.0,0.16541109]
[1762890736852,0.50964458,103390.0,103380.0,0.06865629]
[1762890737557,0.50964458,103390.0,103380.0,0.16541109]
[1762890738954,0.41289918,103390.0,103380.0,0.16541109]
[1762890739366,0.50964458,103390.0,103380.0,0.16541109]
[1762890740051,0.41289918,103390.0,103380.0,0.16541109]
[1762890740247,0.50964458,103390.0,103380.0,0.16541109]
[1762890741964,0.39135918,103390.0,103380.0,0.16541109]
[1762890742265,0.41378918,103390.0,103380.0,0.16541109]
[1762890743064,0.41382918,103390.0,103380.0,0.16541109]
[1762890743266,0.51057458,103390.0,103380.0,0.16541109]
[1762890743659,0.70568248,103390.0,103380.0,0.00983629]
[1762890743871,0.70568248,103390.0,103380.0,0.16399109]
[1762890744059,0.04654918,103390.0,103380.0,0.16399109]
[1762890744266,0.41382918,103390.0,103380.0,0.16399109]
[1762890744466,0.51057458,103390.0,103380.0,0.16399109]
[1762890744768,0.41382918,103390.0,103380.0,0.16399109]
[1762890746968,0.51057458,103390.0,103380.0,0.16399109]
[1762890747264,0.41382918,103390.0,103380.0,0.16399109]
[1762890748562,0.51057458,103390.0,103380.0,0.16399109]
[1762890748764,0.41382918,103390.0,103380.0,0.16399109]
[1762890749271,0.02411918,103390.0,103380.0,0.19856028]
[1762890749573,0.02345918,103390.0,103380.0,0.39366818]
[1762890749868,0.14263458,103390.0,103380.0,0.2505393]
[1762890750369,0.04588918,103390.0,103380.0,0.19856028]
[1762890751265,0.04588918,103390.0,103380.0,0.2505393]
[1762890751664,0.14263458,103390.0,103380.0,0.2505393]
[1762890752064,0.04588918,103390.0,103380.0,0.2505393]
[1762890753172,0.04588918,103390.0,103380.0,0.21597011]
[1762890753361,0.14263458,103390.0,103380.0,0.21597011]
[1762890753566,0.14263458,103390.0,103380.0,0.25056924]
[1762890754269,0.14263458,103390.0,103380.0,0.21597011]
[1762890755274,0.04588918,103390.0,103380.0,0.21597011]
[1762890755672,0.02345918,103390.0,103380.0,0.21597011]
[1762890756172,0.04588918,103390.0,103380.0,0.21597011]
[1762890757374,0.33774248,103390.0,103380.0,0.21597011]
[1762890757576,0.33774248,103390.0,103380.0,0.25059979]
[1762890757966,0.24099708,103390.0,103380.0,0.21597011]
[1762890758376,0.14263458,103390.0,103380.0,0.21597011]
[1762890758675,0.33774248,103390.0,103380.0,0.21597011]
[1762890758880,0.29871502,103390.0,103380.0,0.21597011]
[1762890759375,0.20196962,103390.0,103380.0,0.21597011]
[1762890759568,0.29871502,103390.0,103380.0,0.21597011]
[1762890759962,0.20196962,103390.0,103380.0,0.21597011]
[1762890760166,0.29871502,103390.0,103380.0,0.21597011]
[1762890762370,0.20196962,103390.0,103380.0,0.21597011]
[1762890762878,0.29871502,103390.0,103380.0,0.21597011]
[1762890763271,0.20196962,103390.0,103380.0,0.21597011]
[1762890763867,0.20196962,103390.0,103380.0,0.37205055]
[1762890764679,0.29871502,103390.0,103380.0,0.21597011]
[1762890767080,0.20196962,103390.0,103380.0,0.21597011]
[1762890767286,0.29871502,103390.0,103380.0,0.21597011]
[1762890767481,0.20196962,103390.0,103380.0,0.21597011]
[1762890769475,0.29871502,103390.0,103380.0,0.21597011]
[1762890771281,0.20196962,103390.0,103380.0,0.21597011]
[1762890771681,0.20196962,103390.0,103380.0,0.37205055]
[1762890772384,0.29871502,103390.0,103380.0,0.37205055]
[1762890773085,0.20196962,103390.0,103380.0,0.37205055]
[1762890773378,0.20196962,103390.0,103380.0,0.21597011]
[1762890774381,0.29871502,103390.0,103380.0,0.21597011]
[1762890776274,0.20196962,103390.0,103380.0,0.21597011]
[1762890776773,0.29871502,103390.0,103380.0,0.21597011]
[1762890776973,0.29869845,103390.0,103380.0,0.21597011]
[1762890779880,0.66593845,103390.0,103380.0,0.21597011]
[1762890780190,0.00228918,103390.0,103380.0,0.32005496]
[1762890780977,0.29959845,103390.0,103380.0,0.21598144]
[1762890781480,0.20285305,103390.0,103380.0,0.21598144]
[1762890781880,0.00228918,103390.0,103380.0,0.16399109]
[1762890782084,0.1069442,103420.0,103390.0,0.1538154]
[1762890782085,0.0967242,103420.0,103390.0,0.1538154]
[1762890782281,0.14341543,103420.0,103410.0,0.08305609]
[1762890782475,0.2994793,103420.0,103410.0,0.14369031]
[1762890782699,0.2994793,103420.0,103410.0,0.24041701]
[1762890782994,0.2027619,103420.0,103410.0,0.24041701]
[1762890783177,0.04669803,103420.0,103410.0,0.18844482]
[1762890783377,0.14341543,103420.0,103410.0,0.18844482]
[1762890784182,0.04669803,103420.0,103410.0,0.18844482]
[1762890784388,0.14341543,103420.0,103410.0,0.18844482]
[1762890784795,0.04769803,103420.0,103410.0,0.18844482]
[1762890784996,0.2047619,103420.0,103410.0,0.18844482]
[1762890785883,0.04869803,103420.0,103410.0,0.18844482]
[1762890786282,0.14541543,103420.0,103410.0,0.18844482]
[1762890786996,0.3014793,103420.0,103410.0,0.09171812]
[1762890787182,0.3014793,103420.0,103410.0,0.21435653]
[1762890787982,0.04869803,103420.0,103410.0,0.18844482]
[1762890788181,0.04869803,103420.0,103410.0,0.21434434]
[1762890788382,0.04869803,103420.0,103410.0,0.18844482]
[1762890788591,0.02569803,103420.0,103410.0,0.34450869]
[1762890788792,0.00419803,103420.0,103410.0,0.34450869]
[1762890789093,0.20550913,103430.0,103420.0,0.1537874]
[1762890789284,0.51555129,103430.0,103420.0,0.21414962]
[1762890789482,0.41884329,103430.0,103420.0,0.21414962]
[1762890789679,0.05164329,103430.0,103420.0,0.1882801]
[1762890790191,0.05164329,103430.0,103420.0,0.2141336]
[1762890790378,0.05264329,103430.0,103420.0,0.2141336]
[1762890790779,0.00594526,103430.0,103420.0,0.34434397]
[1762890791488,0.0445,103450.0,103440.0,0.1537687]
[1762890791685,0.04669803,103450.0,103440.0,0.17960228]
[1762890791886,0.2994512,103450.0,103440.0,0.17960228]
[1762890792891,0.2994512,103450.0,103440.0,0.08290358]
[1762890793389,0.3004512,103450.0,103440.0,0.08290358]
[1762890793789,0.2037619,103450.0,103440.0,0.08290358]
[1762890793987,0.3004512,103450.0,103440.0,0.17960228]
[1762890794896,0.02469803,103450.0,103440.0,0.33566615]
[1762890795202,0.00319803,103450.0,103440.0,0.33566615]
[1762890796099,0.02469803,103450.0,103440.0,0.33566615]
[1762890796299,0.12138733,103450.0,103440.0,0.17960228]
[1762890796487,0.14438733,103450.0,103440.0,0.17960228]
[1762890797502,0.02469803,103450.0,103440.0,0.17960228]
[1762890797693,0.00319803,103450.0,103440.0,0.17960228]
[1762890798395,0.02164526,103460.0,103450.0,0.1537593]
[1762890798587,0.12052329,103460.0,103450.0,0.30982317]
[1762890798786,0.14352329,103460.0,103450.0,0.1537593]
[1762890799894,0.14552329,103460.0,103450.0,0.1537593]
[1762890800192,0.14652329,103460.0,103450.0,0.1537593]
[1762890800500,0.02384329,103460.0,103450.0,0.1537593]
[1762890800693,0.00234329,103460.0,103450.0,0.30982317]
[1762890801095,0.00014526,103460.0,103450.0,0.55146317]
[1762890801295,0.1470707,103470.0,103460.0,0.15561]
[1762890801494,0.1470707,103470.0,103460.0,0.05893]
[1762890801495,0.14926873,103470.0,103460.0,0.05893]
[1762890801694,0.46139647,103470.0,103460.0,0.04568]
[1762890802403,0.14926873,103470.0,103460.0,0.05893]
[1762890802603,0.3053326,103470.0,103460.0,0.05893]
[1762890803703,0.6723726,103470.0,103460.0,0.15561]
[1762890804105,0.6723726,103470.0,103460.0,0.05893]
[1762890804703,0.1496,103460.0,103450.0,0.00014526]
[1762890804897,0.3078619,103460.0,103450.0,0.04582526]
[1762890805297,0.3078619,103460.0,103450.0,0.05907526]
[1762890805692,0.14447803,103460.0,103450.0,0.05907526]
[1762890805898,0.3005419,103460.0,103450.0,0.05907526]
[1762890809007,0.3005419,103460.0,103450.0,0.15576466]
[1762890810409,0.3005419,103460.0,103450.0,0.05907526]
[1762890810609,0.3005419,103460.0,103450.0,0.15576466]
[1762890811712,0.2038619,103460.0,103450.0,0.15576466]
[1762890811913,0.04779803,103460.0,103450.0,0.15576466]
[1762890812211,0.41475803,103460.0,103450.0,0.31182853]
[1762890812602,0.41475803,103460.0,103450.0,0.15576466]
[1762890812803,0.6675019,103460.0,103450.0,0.05907526]
[1762890813008,0.3005419,103460.0,103450.0,0.05907526]
[1762890814006,0.6675019,103460.0,103450.0,0.05907526]
[1762890814902,0.6675019,103460.0,103450.0,0.02298526]
[1762890815114,0.6675019,103460.0,103450.0,0.00014526]
[1762890818307,0.6675019,103460.0,103450.0,0.02594293]
[1762890820910,0.82356577,103460.0,103450.0,0.00014526]
[1762890821212,0.149628,103430.0,103420.0,0.1816764]
[1762890821415,0.6748499,103430.0,103420.0,0.00483442]
[1762890822018,0.6748499,103430.0,103420.0,0.16048182]
[1762890822610,0.6748499,103430.0,103420.0,0.06376442]
[1762890822810,0.6748499,103430.0,103420.0,0.00483442]
[1762890825223,0.6748499,103430.0,103420.0,0.05051442]
[1762890825414,0.6748499,103430.0,103420.0,0.02767442]
[1762890825721,0.6748899,103430.0,103420.0,0.14723182]
[1762890825918,0.3078899,103430.0,103420.0,0.16048182]
[1762890826112,0.6675699,103430.0,103420.0,0.16048182]
[1762890826424,0.6675699,103430.0,103420.0,0.06376442]
[1762890826832,0.6748899,103430.0,103420.0,0.06376442]
[1762890827819,0.1330574,103420.0,103410.0,0.00014526]
[1762890828020,0.44738317,103420.0,103410.0,0.00014526]
[1762890828431,0.2913193,103420.0,103410.0,0.00014526]
[1762890828922,0.2913193,103420.0,103410.0,0.09687206]
[1762890829122,0.2913193,103420.0,103410.0,0.00014526]
[1762890829525,0.44738317,103420.0,103410.0,0.00014526]
[1762890829832,0.1360768,103410.0,103400.0,8.529e-05]
[1762890830031,0.81740257,103410.0,103400.0,8.529e-05]
[1762890830827,0.6613387,103410.0,103400.0,0.15340139]
[1762890831133,0.6613387,103410.0,103400.0,0.15440139]
[1762890831323,0.6613387,103410.0,103400.0,0.15540139]
[1762890832030,0.6613387,103410.0,103400.0,0.05866529]
[1762890832731,0.81740257,103410.0,103400.0,0.15540139]
[1762890833433,0.81439257,103410.0,103400.0,0.15540139]
[1762890834637,0.50226483,103410.0,103400.0,0.15540139]
[1762890834833,0.81439257,103410.0,103400.0,0.15540139]
[1762890835134,0.6583287,103410.0,103400.0,0.04545529]
[1762890835934,0.81439257,103410.0,103400.0,0.04545529]
[1762890836339,0.81439257,103410.0,103400.0,0.14219139]
[1762890836931,0.81435277,103410.0,103400.0,0.14219139]
[1762890837540,0.81435277,103410.0,103400.0,0.15515139]
[1762890837838,0.81435277,103410.0,103400.0,0.04545529]
[1762890839127,0.81435277,103410.0,103400.0,0.00208529]
[1762890839333,0.81435277,103410.0,103390.0,0.00014526]
[1762890839334,0.1346761,103400.0,103390.0,0.00014526]
[1762890839631,0.60500604,103400.0,103390.0,0.00014526]
[1762890840532,0.60509517,103400.0,103390.0,0.00414526]
[1762890841841,0.1243655,103390.0,103380.0,0.00483629]
[1762890842041,0.1210242,103370.0,103360.0,1.64417198]
[1762890842238,0.64642104,103370.0,103360.0,1.6097272]
[1762890843037,0.80246501,103370.0,103360.0,0.1518472]
[1762890843543,0.80246501,103370.0,103360.0,1.6518472]
[1762890843740,0.80346501,103370.0,103360.0,1.6568472]
[1762890844042,0.80346501,103370.0,103360.0,0.1568472]
[1762890844243,0.80346501,103370.0,103360.0,0.005]
[1762890844637,0.80446501,103370.0,103360.0,0.1057736]
[1762890845742,0.80446501,103370.0,103360.0,0.1268236]